bitfinex/quotes_ETHUSD_20240916
["timestamp","ask_amount","ask_price","bid_price","bid_amount"]
[1726465497380,0.0377668,2292.5,2292.4,27.25877077]
[1726465497678,0.0377668,2292.5,2292.4,22.89653077]
[1726465497865,0.0377668,2292.5,2292.4,23.27307135]
[1726465498185,0.0377668,2292.5,2292.4,27.63531135]
[1726465498565,0.0377668,2292.5,2292.4,23.27306469]
[1726465498745,0.0377668,2292.5,2292.4,27.63530469]
[1726465499171,0.0377668,2292.5,2292.4,23.27306469]
[1726465499374,0.0377668,2292.5,2292.4,23.27305191]
[1726465499548,0.0377668,2292.5,2292.4,27.63529191]
[1726465499745,0.0377668,2292.5,2292.4,27.25877077]
[1726465499964,0.0377668,2292.5,2292.4,27.63528831]
[1726465500177,0.0377668,2292.5,2292.4,27.25877077]
[1726465500486,0.0377668,2292.5,2292.4,22.28075255]
[1726465500668,0.0377668,2292.5,2292.4,26.64299255]
[1726465500870,0.0377668,2292.5,2292.4,27.63496512]
[1726465501270,0.0377668,2292.5,2292.4,28.53412889]
[1726465501780,0.0377668,2292.5,2292.4,28.5340252]
[1726465502923,0.0377668,2292.5,2292.4,28.53397184]
[1726465503185,0.0377668,2292.5,2292.4,27.63496512]
[1726465503395,0.0377668,2292.5,2292.4,28.53400304]
[1726465503683,0.0377668,2292.5,2292.4,27.63496512]
[1726465504263,0.0377668,2292.5,2292.4,23.27272512]
[1726465504579,0.0377668,2292.5,2292.4,27.63496512]
[1726465505897,0.0377668,2292.5,2292.4,22.28075255]
[1726465506200,0.0377668,2292.5,2292.4,28.53371837]
[1726465506348,0.0377668,2292.5,2292.4,27.91832069]
[1726465506553,0.0377668,2292.5,2292.4,28.53367713]
[1726465507923,0.0377668,2292.5,2292.4,29.88229377]
[1726465508406,0.0377668,2292.5,2292.4,30.86683756]
[1726465508608,1.15415238,2293.2,2293.1,8.7218]
[1726465508609,0.2373668,2293.2,2293.1,8.7218]
[1726465509060,0.2373668,2293.2,2293.1,13.0827]
[1726465509463,0.0377668,2293.2,2293.1,16.0827]
[1726465509768,0.0377668,2293.2,2293.1,21.03195868]
[1726465510710,0.0377668,2293.2,2293.1,25.94285868]
[1726465510892,0.0377668,2293.2,2293.1,28.06994944]
[1726465511065,0.0377668,2293.2,2293.1,29.78569303]
[1726465511269,0.0377668,2293.2,2293.1,11.7218]
[1726465511608,0.2373668,2293.2,2293.1,8.7218]
[1726465512205,0.2373668,2293.2,2293.1,4.3609]
[1726465512766,0.0377668,2293.2,2293.1,10.53555684]
[1726465512967,0.0377668,2293.2,2293.1,11.81784252]
[1726465513216,0.0377668,2293.2,2293.1,13.53555684]
[1726465516980,0.0377668,2293.2,2293.1,11.7218]
[1726465519323,0.0377668,2293.2,2293.1,7.3609]
[1726465519505,0.0377668,2293.2,2293.1,11.7218]
[1726465520510,0.0377668,2293.2,2293.1,7.3609]
[1726465520817,0.0377668,2293.2,2293.1,4.3609]
[1726465522320,0.0377668,2293.2,2293.1,8.7218]
[1726465522488,0.0377668,2293.2,2293.1,10.53555684]
[1726465523208,0.0377668,2293.2,2293.1,4.3609]
[1726465523420,0.79814842,2293.5,2293.2,4.36065]
[1726465523625,1.47400866,2293.5,2293.2,4.36065]
[1726465523984,1.9227724,2293.4,2292.9,4.36113]
[1726465524189,6.13805946,2293.4,2292.9,8.72232]
[1726465524501,1.6686039,2293.4,2293.0,4.36102]
[1726465524899,6.13798172,2293.4,2293.0,4.36102]
[1726465525135,1.74739482,2293.3,2293.0,4.36102]
[1726465527639,1.7776317,2293.4,2293.0,4.36102]
[1726465528410,1.6686039,2293.4,2293.0,4.36102]
[1726465530019,6.0289439,2293.4,2293.0,4.36102]
[1726465530328,6.13797167,2293.4,2293.0,4.36102]
[1726465530505,1.37300134,2293.3,2293.0,4.36102]
[1726465531133,6.13797167,2293.4,2293.0,4.36102]
[1726465531431,1.30046604,2293.3,2293.0,4.36102]
[1726465531792,2.67346738,2293.3,2293.0,4.36102]
[1726465533322,0.9152153,2293.2,2293.0,4.36102]
[1726465535329,0.9152153,2293.2,2293.0,4.36109]
[1726465535696,0.9152153,2293.2,2293.1,4.3609]
[1726465537335,0.9152153,2293.2,2293.0,8.72218]
[1726465537711,0.9152153,2293.2,2293.1,4.3609]
[1726465537917,0.9152153,2293.3,2293.1,4.3609]
[1726465539413,0.9152153,2293.3,2293.2,4.36071]
[1726465541422,0.9152153,2293.3,2293.1,4.36086]
[1726465542721,0.9152153,2293.3,2293.1,4.36081]
[1726465543511,0.9152153,2293.3,2293.0,4.36106]
[1726465543747,0.9152153,2293.3,2293.1,4.36076]
[1726465547366,0.9152153,2293.2,2293.1,4.36076]
[1726465547837,0.9152153,2293.3,2293.1,4.36076]
[1726465548470,0.9152153,2293.2,2293.0,4.36106]
[1726465548677,0.9152153,2293.2,2293.0,8.72205]
[1726465549198,0.9152153,2293.2,2293.1,4.3609]
[1726465549914,0.9152153,2293.2,2293.0,8.72192]
[1726465551111,0.9152153,2293.2,2293.0,4.36093]
[1726465551288,0.9152153,2293.2,2293.0,8.7219]
[1726465554686,0.9152153,2293.2,2293.0,8.72194]
[1726465555626,0.9152153,2293.1,2293.0,4.36093]
[1726465558131,0.9152153,2293.1,2293.0,8.72202]
[1726465558424,0.9152153,2293.2,2293.1,4.3609]
[1726465563008,1.37300134,2293.3,2293.2,8.72142]
[1726465563009,0.9152153,2293.3,2293.2,8.72142]
[1726465563254,0.9152153,2293.4,2293.3,11.04154]
[1726465563592,0.9152153,2293.4,2293.3,13.16200499]
[1726465565963,0.9152153,2293.5,2293.4,8.72066]
[1726465568587,0.9152153,2293.6,2293.5,4.36014]
[1726465568792,0.9152153,2293.6,2293.5,5.7506888]
[1726465571181,0.9152153,2293.7,2293.6,4.35995]
[1726465571385,0.9152153,2293.7,2293.6,8.7199]
[1726465571774,0.9152153,2293.7,2293.6,11.7199]
[1726465571975,0.9529821,2293.9,2293.8,4.35957]
[1726465572192,0.9529821,2293.9,2293.8,8.71914]
[1726465572680,0.0377668,2293.9,2293.8,8.71914]
[1726465572879,0.0377668,2293.9,2293.8,10.34550626]
[1726465573112,0.9529821,2293.9,2293.8,1.62636626]
[1726465573610,0.9529821,2293.9,2293.7,11.71931]
[1726465573611,0.95301472,2293.9,2293.7,11.71931]
[1726465573769,0.95301472,2293.9,2293.7,11.7193]
[1726465574106,0.91524792,2293.8,2293.7,7.35963]
[1726465574267,0.91524792,2293.8,2293.7,8.095593]
[1726465574479,0.95301472,2293.9,2293.7,8.095593]
[1726465574874,0.95301472,2293.9,2293.7,12.455263]
[1726465575081,0.91524792,2293.8,2293.7,12.455263]
[1726465575643,0.95301472,2293.9,2293.7,12.455263]
[1726465576211,0.95301472,2293.9,2293.8,0.87684624]
[1726465576404,0.95301472,2293.9,2293.8,5.23641624]
[1726465577622,0.0377668,2293.9,2293.8,5.23641624]
[1726465578477,0.0377668,2293.9,2293.8,9.59598624]
[1726465581320,0.0377668,2293.9,2293.8,19.39775624]
[1726465588454,0.0377668,2293.9,2293.8,19.94775624]
[1726465610249,0.03634876,2293.9,2293.8,19.94775624]
[1726465610642,0.03634876,2293.9,2293.8,16.85194308]
[1726465615062,0.03634876,2293.9,2293.8,21.76151308]
[1726465617702,0.03634876,2293.9,2293.8,22.38130401]
[1726465618252,0.03634876,2293.9,2293.8,22.75761573]
[1726465618491,0.03634876,2293.9,2293.8,21.76151308]
[1726465618786,0.03634876,2293.9,2293.8,22.38125613]
[1726465619351,0.03634876,2293.9,2293.8,22.75758906]
[1726465619799,0.03634876,2293.9,2293.8,23.66462698]
[1726465619998,0.03634876,2293.9,2293.8,22.75758906]
[1726465620455,0.03634876,2293.9,2293.8,25.02543179]
[1726465620656,0.03634876,2293.9,2293.8,25.02530084]
[1726465622355,0.03634876,2293.9,2293.8,26.0168404]
[1726465623100,0.03634876,2293.9,2293.8,29.75666735]
[1726465623346,0.03634876,2293.9,2293.8,30.37657865]
[1726465623622,0.03634876,2293.9,2293.8,31.28649232]
[1726465624021,0.03634876,2293.9,2293.8,26.92692232]
[1726465624201,0.03634876,2293.9,2293.8,31.28649232]
[1726465624750,0.03634876,2293.9,2293.8,31.28626884]
[1726465625439,1.41076814,2294.5,2294.4,8.71686]
[1726465625440,0.95301472,2294.5,2294.4,8.71686]
[1726465625644,0.0377668,2294.5,2294.4,19.03393499]
[1726465625800,0.0377668,2294.5,2294.4,19.41016434]
[1726465626132,0.0377668,2294.5,2294.4,22.96632184]
[1726465626292,0.0377668,2294.5,2294.4,24.88583671]
[1726465626494,0.0377668,2294.5,2294.4,23.51632184]
[1726465626694,0.0377668,2294.5,2294.4,23.51625024]
[1726465627197,0.0377668,2294.5,2294.4,23.51624607]
[1726465627522,0.0377668,2294.5,2294.4,22.60946276]
[1726465627871,0.0377668,2294.5,2294.4,18.72466419]
[1726465628188,0.0377668,2294.5,2294.4,19.89674306]
[1726465628388,0.0377668,2294.5,2294.4,26.71397306]
[1726465628621,0.0377668,2294.5,2294.4,27.6258731]
[1726465629128,0.0377668,2294.5,2294.4,18.72466419]
[1726465629337,0.0377668,2294.5,2294.4,20.53842103]
[1726465629832,0.0377668,2294.5,2294.4,22.62235917]
[1726465630041,0.0377668,2294.5,2294.4,21.71048996]
[1726465630213,0.0377668,2294.5,2294.4,21.71044983]
[1726465631226,0.0377668,2294.5,2294.4,21.08842103]
[1726465644642,0.0377668,2294.5,2294.4,14.91623419]
[1726465644847,0.0377668,2294.5,2294.4,21.08842103]
[1726465645011,0.0377668,2294.5,2294.4,13.53061684]
[1726465647249,0.0377668,2294.5,2294.3,4.35857]
[1726465647456,0.0377668,2294.5,2293.9,3.33871023]
[1726465647457,0.0377668,2294.5,2294.2,4.35871]
[1726465647770,0.0377668,2294.5,2294.2,8.71741]
[1726465647921,0.14672661,2294.5,2294.0,4.35907]
[1726465648126,0.14672661,2294.5,2294.2,4.35872]
[1726465648127,0.0377668,2294.5,2294.2,4.35872]
[1726465648440,0.0377668,2294.5,2294.2,6.17245684]
[1726465650253,0.0377668,2294.5,2294.2,10.53114684]
[1726465650415,0.0377668,2294.5,2294.2,6.17244684]
[1726465653812,0.0377668,2294.5,2294.2,10.53114684]
[1726465654146,0.0377668,2294.5,2294.2,6.17244684]
[1726465654453,0.0377668,2294.5,2294.2,10.53115684]
[1726465654615,0.0377668,2294.5,2294.2,10.53114684]
[1726465655041,0.0377668,2294.5,2294.2,6.17244684]
[1726465655351,0.0377668,2294.5,2294.2,10.53115684]
[1726465656460,0.0377668,2294.5,2294.4,4.35843]
[1726465656625,0.0377668,2294.5,2294.4,10.53061684]
[1726465660162,0.0377668,2294.5,2294.4,11.58367852]
[1726465660769,0.0377668,2294.5,2294.4,10.53061684]
[1726465662273,0.0377668,2294.5,2294.4,13.53061684]
[1726465678232,0.0377668,2294.5,2294.4,15.91201684]
[1726465678434,0.0377668,2294.5,2294.4,20.27044684]
[1726465678583,0.0377668,2294.5,2294.4,20.82044684]
[1726465678788,0.0377668,2294.5,2294.4,23.52482233]
[1726465680225,0.0377668,2294.5,2294.4,22.90249152]
[1726465680401,0.0377668,2294.5,2294.4,23.52469229]
[1726465681501,0.0377668,2294.5,2294.4,28.78961387]
[1726465681694,0.0377668,2294.5,2294.4,45.06345854]
[1726465681898,0.0377668,2294.5,2294.4,47.57142629]
[1726465682131,0.0377668,2294.5,2294.4,43.03330529]
[1726465682427,0.0377668,2294.5,2294.4,39.46861029]
[1726465683448,0.0377668,2294.5,2294.4,37.95570848]
[1726465684433,0.0377668,2294.5,2294.4,33.51725554]
[1726465684644,0.0377668,2294.5,2294.4,30.14927554]
[1726465685631,0.0377668,2294.5,2294.4,30.14777827]
[1726465685949,0.0377668,2294.5,2294.4,29.5255775]
[1726465686131,0.95301472,2295.2,2295.1,4.3571]
[1726465686132,0.0377668,2295.2,2295.1,4.3571]
[1726465686340,0.0377668,2295.2,2295.1,7.3571]
[1726465688700,0.95301472,2295.2,2295.1,7.3571]
[1726465689588,0.0377668,2295.2,2295.1,7.3571]
[1726465689795,0.0377668,2295.2,2295.1,3.0]
[1726465690097,0.95301472,2295.2,2295.0,4.35721]
[1726465690330,0.91524792,2295.1,2294.9,7.35739]
[1726465695563,0.91524792,2295.1,2295.0,4.35729]
[1726465696873,1.37300134,2295.1,2294.8,4.35765]
[1726465697165,0.9142951,2295.0,2294.8,4.35765]
[1726465697371,0.9142951,2295.0,2294.9,4.35748]
[1726465697575,1.37300134,2295.1,2294.9,4.35748]
[1726465698069,0.91440169,2295.0,2294.9,4.35748]
[1726465698268,1.37300134,2295.0,2294.9,4.35748]
[1726465699685,1.37300134,2295.0,2294.8,4.35765]
[1726465699870,0.9146452,2294.9,2294.8,8.71521]
[1726465700855,0.9146452,2294.9,2294.8,4.35756]
[1726465705503,0.9146452,2294.9,2294.8,5.33524383]
[1726465706271,0.9146452,2294.9,2294.8,4.35756]
[1726465706716,1.37300134,2294.9,2294.7,6.17145684]
[1726465707021,1.37300134,2294.9,2294.8,4.35767]
[1726465708178,1.37300134,2295.0,2294.8,4.35767]
[1726465708796,1.37300134,2294.9,2294.8,4.35767]
[1726465709317,0.91539332,2294.9,2294.8,4.35767]
[1726465709529,1.37300134,2295.0,2294.8,4.35767]
[1726465709707,1.37300134,2294.9,2294.8,4.35767]
[1726465711324,0.91538759,2294.9,2294.8,4.35767]
[1726465711689,1.37300134,2295.0,2294.8,4.35767]
[1726465712223,1.37300134,2294.9,2294.8,4.35767]
[1726465712670,0.91544111,2294.9,2294.8,8.71534]
[1726465712785,0.91544111,2295.0,2294.9,4.35748]
[1726465712988,0.91544111,2295.0,2294.9,6.17123684]
[1726465715799,1.37300134,2295.1,2294.9,6.17123684]
[1726465716336,1.37300134,2295.0,2294.9,6.17123684]
[1726465718345,0.91549988,2295.0,2294.9,6.17123684]
[1726465719456,1.37300134,2295.1,2294.9,6.17123684]
[1726465719860,1.37300134,2295.0,2294.9,6.17123684]
[1726465721701,1.37300134,2295.0,2294.9,10.52871684]
[1726465723602,1.37300134,2295.0,2294.9,4.35748]
[1726465724169,1.86843525,2295.2,2294.9,4.35748]
[1726465724990,1.86843525,2295.2,2295.0,6.17103684]
[1726465728381,1.83066845,2295.1,2295.0,6.17103684]
[1726465731101,1.37397118,2295.1,2295.0,11.58119552]
[1726465731390,0.91592609,2295.1,2295.0,14.05419552]
[1726465731747,0.91592609,2295.1,2295.0,18.41148552]
[1726465731943,0.91592609,2295.1,2295.0,14.05419552]
[1726465732148,0.95369289,2295.2,2295.1,8.7142]
[1726465732349,0.0377668,2295.2,2295.1,20.03421055]
[1726465732754,0.0377668,2295.2,2295.1,20.65613325]
[1726465732953,0.0377668,2295.2,2295.1,21.0322594]
[1726465733154,0.0377668,2295.2,2295.1,17.49086739]
[1726465736392,0.08008939,2295.2,2295.1,17.49086739]
[1726465736589,0.0377668,2295.2,2295.1,17.49086739]
[1726465736780,0.08008939,2295.2,2295.1,17.49086739]
[1726465737710,0.0377668,2295.2,2295.1,17.49086739]
[1726465741928,0.0377668,2295.2,2295.1,15.12176739]
[1726465742399,0.0377668,2295.2,2295.1,4.3571]
[1726465742785,0.08008939,2295.2,2295.1,4.3571]
[1726465743008,0.95369289,2295.2,2295.1,4.3571]
[1726465743229,0.99601548,2295.2,2295.1,4.3571]
[1726465744618,0.08008939,2295.2,2295.0,4.35729]
[1726465744824,0.91479712,2295.1,2295.0,4.35729]
[1726465745254,0.95711971,2295.1,2295.0,4.35729]
[1726465746670,0.95711971,2295.1,2294.9,6.17113684]
[1726465746868,0.95711971,2295.1,2295.0,4.35729]
[1726465749281,0.04232259,2295.1,2295.0,4.35729]
[1726465749483,0.9572863,2295.1,2295.0,4.35729]
[1726465749977,0.9572863,2295.1,2294.9,6.17113684]
[1726465749978,0.04232259,2295.1,2294.9,6.17113684]
[1726465750150,0.91497659,2295.0,2294.9,6.17113684]
[1726465750677,0.95729918,2295.0,2294.9,6.17113684]
[1726465754854,0.95729918,2295.0,2294.9,10.52861684]
[1726465757991,0.95729918,2295.0,2294.9,14.45957852]
[1726465758185,0.95729918,2295.0,2294.9,21.81705852]
[1726465758390,0.95729918,2295.0,2294.9,22.43920311]
[1726465758586,0.95729918,2295.0,2294.9,23.36545398]
[1726465758886,0.04232259,2295.0,2294.9,26.63663157]
[1726465759182,0.0377668,2295.2,2295.1,18.3979]
[1726465759349,0.0377668,2295.2,2295.1,20.21165684]
[1726465779646,0.0377668,2295.2,2295.1,15.85455684]
[1726465787811,0.0377668,2295.2,2295.1,9.7153]
[1726465788012,0.0377668,2295.2,2295.1,15.88615684]
[1726465788211,0.07972834,2295.2,2295.1,15.88615684]
[1726465788443,0.0377668,2295.2,2295.1,11.52905684]
[1726465788646,0.07964935,2295.2,2295.1,11.52905684]
[1726465790879,0.07964935,2295.2,2295.1,9.17085684]
[1726465791074,0.07964935,2295.2,2295.1,7.3571]
[1726465791372,0.99462594,2295.2,2294.9,4.35738]
[1726465791734,0.91497659,2295.1,2295.0,4.35727]
[1726465791969,0.95678015,2295.1,2295.0,4.35727]
[1726465792146,0.95678015,2295.1,2294.9,4.35738]
[1726465792588,0.95678015,2295.1,2294.7,9.17146684]
[1726465792789,0.95678015,2295.1,2294.8,7.35767]
[1726465794079,0.91497659,2295.0,2294.8,7.35767]
[1726465794383,0.04152142,2294.9,2294.8,7.35767]
[1726465794985,0.04152142,2294.9,2294.8,11.71534]
[1726465795207,0.04152142,2294.9,2294.8,13.06824968]
[1726465795495,0.91497659,2295.1,2294.9,4.35743]
[1726465795789,0.04141984,2295.0,2294.9,7.35743]
[1726465798575,0.04141984,2295.0,2294.9,3.0]
[1726465798753,0.95639643,2295.0,2294.9,3.0]
[1726465799991,0.95639643,2295.0,2294.8,4.35757]
[1726465800204,0.95639643,2295.0,2294.7,1.81375684]
[1726465801000,0.95639643,2295.0,2294.8,4.35759]
[1726465801861,0.95639643,2295.0,2294.9,4.35748]
[1726465802103,0.95639643,2295.0,2294.8,8.71516]
[1726465802402,0.95639643,2295.0,2294.8,4.35757]
[1726465803870,0.95639643,2295.0,2294.8,8.71516]
[1726465804394,0.95639643,2295.0,2294.8,8.71514]
[1726465804567,0.95639643,2295.0,2294.8,8.71515]
[1726465804782,0.95639643,2295.0,2294.9,4.35748]
[1726465807833,0.95639643,2295.0,2294.8,8.71516]
[1726465807994,0.95639643,2295.0,2294.8,8.71513]
[1726465809422,0.95639643,2295.0,2294.9,6.17123684]
[1726465809626,0.04141984,2295.0,2294.9,6.17123684]
[1726465810433,0.95274339,2295.2,2295.0,4.35729]
[1726465811149,0.95274339,2295.2,2295.1,4.3571]
[1726465811381,0.95274339,2295.2,2295.1,10.52795684]
[1726465811382,0.0377668,2295.2,2295.1,10.52795684]
[1726465811515,0.0377668,2295.2,2295.1,12.78215684]
[1726465812198,0.0377668,2295.2,2295.1,10.9684]
[1726465814335,0.0377668,2295.2,2295.1,12.38551984]
[1726465815698,0.0377668,2295.2,2295.1,10.13131984]
[1726465816954,0.0377668,2295.2,2295.1,8.7142]
[1726465817244,0.95274339,2295.2,2295.0,4.3572]
[1726465817410,0.91497659,2295.1,2294.9,4.35746]
[1726465817604,0.91497659,2295.0,2294.9,4.35746]
[1726465817829,0.91497659,2295.0,2294.7,4.35768]
[1726465818021,0.91497659,2295.0,2294.8,4.35767]
[1726465818746,0.91497659,2295.0,2294.7,8.71544]
[1726465818947,1.38427157,2295.0,2294.7,8.71545]
[1726465819159,0.91497659,2294.9,2294.7,8.71545]
[1726465819309,0.91497659,2294.9,2294.8,4.35767]
[1726465819507,1.38427157,2295.0,2294.8,4.35767]
[1726465819747,0.03931274,2294.9,2294.8,4.35767]
[1726465822921,0.03931274,2294.9,2294.7,4.35768]
[1726465823840,0.03931274,2294.9,2294.8,4.35767]
[1726465825264,0.03931274,2294.9,2294.8,11.69079549]
[1726465827048,1.41173798,2295.2,2295.1,4.3571]
[1726465827857,1.41173798,2295.2,2295.1,10.52795684]
[1726465828071,1.41173798,2295.2,2295.1,10.20273368]
[1726465828072,0.95241275,2295.2,2295.1,10.20273368]
[1726465828391,1.41173798,2295.2,2295.1,10.20273368]
[1726465829594,1.41173798,2295.2,2295.1,8.7142]
[1726465831058,0.0377668,2295.2,2295.1,8.7142]
[1726465831383,1.41173798,2295.2,2295.1,8.7142]
[1726465833683,0.0377668,2295.2,2295.1,4.3571]
[1726465833888,1.41085702,2295.2,2295.1,4.3571]
[1726465834297,1.41085702,2295.2,2295.0,4.35715]
[1726465834497,1.37319762,2295.1,2295.0,4.35715]
[1726465834704,1.41255551,2295.1,2295.0,8.71429]
[1726465834859,1.41255551,2295.1,2295.0,4.35714]
[1726465835196,0.03935789,2295.1,2295.0,4.35714]
[1726465835700,1.87002634,2295.1,2295.0,4.35714]
[1726465838308,1.41297823,2295.1,2295.0,8.71443]
[1726465840024,1.41297823,2295.1,2295.0,4.35714]
[1726465840387,1.41297823,2295.1,2294.9,4.35737]
[1726465840388,2.4271093,2295.1,2294.9,4.35748]
[1726465840825,1.83066845,2295.0,2294.9,4.35748]
[1726465841182,1.83066845,2295.0,2294.8,4.35766]
[1726465841386,1.37365949,2294.9,2294.7,4.35777]
[1726465841587,1.37365949,2294.8,2294.6,4.35805]
[1726465841897,0.95519147,2294.7,2294.6,8.7161]
[1726465843681,0.03935789,2294.7,2294.6,8.7161]
[1726465843887,0.91583358,2294.8,2294.7,4.35786]
[1726465844088,0.95519147,2294.8,2294.7,4.35786]
[1726465846705,0.95519147,2294.8,2294.7,8.71572]
[1726465852409,0.95519147,2294.8,2294.7,10.52947684]
[1726465853840,0.95519147,2294.8,2294.7,8.71572]
[1726465854545,0.03935789,2294.8,2294.7,8.71572]
[1726465854741,0.03935789,2294.8,2294.7,10.43559168]
[1726465859901,0.95519147,2294.8,2294.7,10.43559168]
[1726465862575,0.03935789,2294.8,2294.7,10.43559168]
[1726465864283,0.95519147,2294.8,2294.7,10.43559168]
[1726465864461,0.95519147,2294.8,2294.7,8.71572]
[1726465864664,0.03935789,2294.8,2294.7,8.71572]
[1726465864871,1.41301738,2294.8,2294.7,8.71572]
[1726465865181,0.95515272,2294.8,2294.7,8.71572]
[1726465865481,0.95515272,2294.8,2294.7,11.03482]
[1726465865798,0.23878818,2294.8,2294.7,26.83497352]
[1726465865951,0.23878818,2294.8,2294.7,38.87742434]
[1726465866172,0.23878818,2294.8,2294.7,44.51211013]
[1726465866340,1.86843525,2295.2,2294.7,44.51211013]
[1726465866341,1.86843525,2295.2,2295.1,13.0713]
[1726465866686,1.86843525,2295.2,2295.1,20.75415684]
[1726465866687,0.0377668,2295.2,2295.1,20.75415684]
[1726465866880,0.0377668,2295.2,2295.1,21.66780465]
[1726465867083,0.0377668,2295.2,2295.1,24.98847965]
[1726465867292,0.0377668,2295.2,2295.1,26.35880619]
[1726465867585,0.0377668,2295.2,2295.1,24.07483184]
[1726465867951,0.0377668,2295.2,2295.1,28.43193184]
[1726465868161,1.37365949,2295.7,2295.1,28.43193184]
[1726465868162,1.37365949,2295.7,2295.6,13.06845]
[1726465868369,1.37365949,2295.7,2295.6,20.20250684]
[1726465869309,1.37365949,2295.7,2295.6,20.75250684]
[1726465872469,0.0377668,2295.9,2295.8,4.35578]
[1726465872667,0.0377668,2295.9,2295.8,10.46032638]
[1726465873896,0.0377668,2295.9,2295.8,19.17188638]
[1726465874725,0.0377668,2295.9,2295.8,28.11310193]
[1726465874918,0.0377668,2295.9,2295.8,26.47066638]
[1726465875072,0.0377668,2296.6,2296.5,4.35445]
[1726465876292,0.0377668,2296.6,2296.5,8.7089]
[1726465876692,0.0377668,2296.6,2296.5,10.52265684]
[1726465876898,0.0377668,2296.6,2296.5,17.29160684]
[1726465877179,0.0377668,2296.6,2296.5,20.84160684]
[1726465877383,0.0377668,2296.6,2296.5,27.28021752]
[1726465877831,0.0377668,2296.6,2296.5,70.63754352]
[1726465878126,0.0377668,2297.3,2297.2,8.70624]
[1726465878429,0.0377668,2297.3,2297.2,17.87311684]
[1726465878723,0.0377668,2297.3,2297.2,19.90187852]
[1726465879605,0.0377668,2297.3,2297.2,15.54875852]
[1726465879809,0.0377668,2297.3,2297.2,11.70624]
[1726465880016,0.0377668,2297.3,2297.2,8.70624]
[1726465880729,0.0377668,2297.3,2297.2,4.35312]
[1726465881738,0.0377668,2297.3,2296.9,3.0]
[1726465881892,0.0377,2297.2,2296.8,4.3537]
[1726465882231,0.48431968,2297.2,2296.8,4.3537]
[1726465883952,0.1088411,2297.1,2296.6,4.35413]
[1726465884088,4.4621911,2297.1,2296.6,4.35413]
[1726465884296,0.0377,2296.9,2296.6,4.35413]
[1726465885236,0.0377,2296.9,2296.5,4.35433]
[1726465886313,0.0377,2296.9,2296.5,3.0]
[1726465886691,0.0377,2296.9,2296.5,7.35439]
[1726465886918,0.56981751,2296.9,2296.4,4.35448]
[1726465887151,4.92356751,2296.9,2296.4,8.70899]
[1726465887460,4.92356751,2296.9,2296.4,4.35448]
[1726465887738,1.03158957,2296.8,2296.4,4.35448]
[1726465890305,0.53211751,2296.9,2296.5,4.35444]
[1726465891051,0.03851923,2296.8,2296.5,4.35444]
[1726465893634,0.03851923,2296.8,2296.6,4.35408]
[1726465894235,0.03851923,2296.8,2296.5,4.35444]
[1726465894854,0.03851923,2296.8,2296.5,8.70878]
[1726465895269,0.03851923,2296.8,2296.6,4.35424]
[1726465895479,0.03851923,2296.8,2296.5,4.35434]
[1726465895621,0.53211751,2296.9,2296.5,8.70869]
[1726465895947,0.04089062,2296.8,2296.5,4.35434]
[1726465896549,0.04089062,2296.8,2296.3,4.35468]
[1726465896550,0.54821771,2296.8,2296.3,4.35468]
[1726465896748,0.0377,2296.7,2296.3,4.35468]
[1726465897348,0.04089062,2296.6,2296.3,8.70942]
[1726465897562,0.04089062,2296.6,2296.3,4.35468]
[1726465897978,0.54577743,2296.6,2296.2,3.0]
[1726465898122,4.35445,2296.5,2296.1,4.35502]
[1726465898326,0.10887149,2296.4,2296.1,4.35502]
[1726465898606,0.14979733,2296.4,2296.1,4.35502]
[1726465899668,0.04092446,2296.4,2296.0,11.75538]
[1726465899870,5.33570688,2296.4,2296.0,7.4]
[1726465900023,0.10888022,2296.3,2296.0,7.4]
[1726465900229,0.04072138,2296.2,2296.0,7.4]
[1726465900540,0.10888022,2296.3,2296.0,7.4]
[1726465900754,0.07842138,2296.1,2296.0,7.4]
[1726465901071,0.07842138,2296.1,2295.9,4.35546]
[1726465902167,0.07842138,2296.1,2295.9,4.35547]
[1726465902366,0.04072138,2296.1,2296.0,8.7108]
[1726465902524,0.04072138,2296.1,2296.0,4.3554]
[1726465902719,0.0377,2296.4,2296.1,4.3552]
[1726465903134,0.04072138,2296.3,2296.1,4.3552]
[1726465905532,0.04072138,2296.3,2296.1,8.7104]
[1726465905731,0.04072138,2296.3,2296.1,4.3552]
[1726465907429,0.04072138,2296.3,2296.1,8.7103]
[1726465907626,0.04072138,2296.3,2296.2,7.35502]
[1726465909170,0.04072138,2296.3,2296.2,11.71004]
[1726465909780,4.35393,2296.8,2296.5,4.35445]
[1726465909781,0.0377,2296.8,2296.5,4.35445]
[1726465910084,0.0377,2296.8,2296.6,4.35413]
[1726465910954,0.0377,2296.8,2296.5,4.35435]
[1726465911156,0.0377,2296.8,2296.5,4.35433]
[1726465912000,0.0377,2296.8,2296.3,4.35471]
[1726465912173,0.0377,2296.8,2296.5,4.35444]
[1726465912498,0.96979695,2296.8,2296.4,4.35462]
[1726465912664,0.0377,2296.8,2296.5,4.35443]
[1726465913500,0.0377,2296.8,2296.4,4.35462]
[1726465913668,0.0377,2296.8,2296.4,8.70912]
[1726465913868,0.0377,2296.8,2296.4,4.3545]
[1726465914069,0.0377,2296.8,2296.4,8.70903]
[1726465914307,0.0377,2296.8,2296.4,4.3545]
[1726465914506,0.0377,2296.8,2296.4,8.70899]
[1726465914928,0.0377,2296.8,2296.4,4.35449]
[1726465915527,1.10716311,2296.8,2296.4,4.35449]
[1726465915823,5.46119311,2296.8,2296.3,4.35477]
[1726465916021,0.10886327,2296.7,2296.3,4.35477]
[1726465916330,1.20316647,2296.7,2296.3,4.35477]
[1726465917732,1.0943032,2296.7,2296.4,4.35462]
[1726465918057,5.46119311,2296.8,2296.4,4.35462]
[1726465918213,5.57006118,2296.8,2296.4,4.35462]
[1726465918559,1.10716311,2296.8,2296.4,4.35462]
[1726465919625,0.91042425,2296.9,2296.6,4.35409]
[1726465920238,0.91042425,2296.9,2296.7,4.35405]
[1726465921056,0.91042425,2297.0,2296.8,8.70776]
[1726465921234,0.91042425,2297.0,2296.9,4.35369]
[1726465921625,0.91042425,2297.1,2296.9,4.35369]
[1726465922328,0.91042425,2297.1,2297.0,4.3535]
[1726465922523,0.91042425,2297.2,2297.0,4.3535]
[1726465923041,0.91042425,2297.2,2297.0,8.70687]
[1726465923239,0.91042425,2297.2,2297.1,4.35331]
[1726465923676,0.94819105,2297.3,2297.1,4.35331]
[1726465924397,0.94819105,2297.3,2297.0,4.35337]
[1726465924617,0.91042425,2297.2,2297.0,8.70675]
[1726465924759,0.95064912,2297.2,2297.0,4.35337]
[1726465925203,0.95064912,2297.2,2297.0,8.70676]
[1726465925709,0.95064912,2297.2,2297.0,4.35337]